bitfinex-derivatives/quotes_SOLF0:USTF0_20250110
["timestamp","ask_amount","ask_price","bid_price","bid_amount"]
[1736528934250,12.69343601,184.57,184.46,2.7109]
[1736528934451,12.69343601,184.57,184.47,4.58537766]
[1736528934752,14.26483601,184.57,184.46,2.7109]
[1736528934954,12.69343601,184.54,184.47,4.58681324]
[1736528935153,12.69343601,184.54,184.46,2.7109]
[1736528935355,12.69343601,184.54,184.47,4.58681472]
[1736528935559,12.69343601,184.54,184.47,5.80108446]
[1736528936359,12.69343601,184.54,184.44,12.69343601]
[1736528936559,2.7104,184.51,184.47,2.7108]
[1736528937155,2.7105,184.5,184.46,2.7109]
[1736528937362,2.7105,184.5,184.47,4.59005131]
[1736528937558,2.7105,184.5,184.46,2.7109]
[1736528937751,2.7105,184.5,184.47,4.59178883]
[1736528937950,2.7105,184.5,184.46,2.7109]
[1736528938156,12.69343601,184.54,184.47,4.59179041]
[1736528938451,12.69343601,184.54,184.43,3.1874]
[1736528938654,17.87343601,184.54,184.44,4.59368987]
[1736528938850,2.7108,184.48,184.45,4.59368987]
[1736528939062,2.7108,184.48,184.46,4.59368987]
[1736528939260,2.7108,184.48,184.45,8.51877017]
[1736528939559,2.7108,184.48,184.46,4.59359296]
[1736528939759,2.7108,184.48,184.45,2.711]
[1736528939961,2.7108,184.48,184.46,4.59361673]
[1736528940259,2.7108,184.48,184.45,2.711]
[1736528940455,2.7108,184.47,184.46,4.59361673]
[1736528940656,12.69343601,184.5,184.41,22.41302241]
[1736528940857,12.69343601,184.5,184.42,4.59420163]
[1736528941053,12.69343601,184.5,184.42,22.41302241]
[1736528941654,2.7107,184.48,184.42,25.12452241]
[1736528941858,12.69343601,184.5,184.42,22.41302241]
[1736528942058,5.18,184.54,184.42,22.41302241]
[1736528942059,12.69343601,184.47,184.42,22.41302241]
[1736528942265,12.69343601,184.47,184.39,2.712]
[1736528942465,12.69343601,184.47,184.4,4.59214525]
[1736528942663,5.18,184.46,184.39,2.712]
[1736528942862,5.18,184.46,184.4,4.5921471]
[1736528943066,5.18,184.46,184.38,2.7121]
[1736528943258,5.18,184.46,184.39,4.59216865]
[1736528943467,5.18,184.46,184.38,25.12512241]
[1736528943660,2.7117,184.42,184.39,4.59071547]
[1736528943860,12.69343601,184.47,184.38,22.41302241]
[1736528944161,12.69343601,184.47,184.39,10.39472192]
[1736528944361,12.69343601,184.47,184.39,18.61474357]
[1736528944864,12.69343601,184.47,184.39,12.81072898]
[1736528945160,2.7117,184.41,184.39,7.52244407]
[1736528945359,12.69343601,184.47,184.39,7.52244407]
[1736528945556,12.69343601,184.44,184.39,7.52244407]
[1736528946268,12.69343601,184.44,184.37,29.93546648]
[1736528946960,2.7116,184.42,184.37,29.93546648]
[1736528947159,12.69343601,184.44,184.35,32.64796648]
[1736528947568,16.24,184.64,184.35,29.93546648]
[1736528947867,2.7113,184.44,184.36,4.58592671]
[1736528948064,12.69343601,184.49,184.35,29.93546648]
[1736528948065,12.69343601,184.49,184.37,4.58592671]
[1736528948264,2.7109,184.47,184.43,2.7114]
[1736528948562,12.69343601,184.49,184.39,4.9476]
[1736528948765,12.69343601,184.49,184.42,2.7115]
[1736528948766,2.7111,184.46,184.42,2.7115]
[1736528949164,12.69343601,184.49,184.42,2.7115]
[1736528949364,2.7112,184.45,184.41,2.7117]
[1736528949858,12.69343601,184.49,184.4,7.52244407]
[1736528950263,2.7116,184.42,184.4,7.52244407]
[1736528951167,2.7116,184.42,184.39,6.0683]
[1736528952470,2.7109,184.47,184.4,4.60198331]
[1736528952665,12.69343601,184.49,184.39,3.3563]
[1736528952968,12.69343601,184.46,184.36,29.93546648]
[1736528953168,2.7118,184.41,184.37,7.31439051]
[1736528953368,2.7118,184.41,184.38,4.60219051]
[1736528953572,2.7118,184.41,184.39,4.60219051]
[1736528953761,2.7118,184.41,184.39,5.82326806]
[1736528954070,12.69343601,184.46,184.4,4.60597376]
[1736528954270,12.69343601,184.46,184.38,2.7121]
[1736528954466,2.7119,184.4,184.39,4.60817716]
[1736528955369,12.69343601,184.46,184.35,10.70044407]
[1736528955665,12.69343601,184.46,184.36,4.60895335]
[1736528955969,2.7121,184.39,184.37,4.60895335]
[1736528956165,2.7121,184.39,184.36,5.82706501]
[1736528956166,2.7121,184.39,184.38,4.60895335]
[1736528956373,2.7119,184.4,184.38,10.43601836]
[1736528956568,2.7119,184.4,184.39,4.60895335]
[1736528959172,12.69343601,184.43,184.35,5.8905]
[1736528959470,2.712,184.39,184.36,10.43924247]
[1736528959671,2.712,184.39,184.37,4.61070688]
[1736528959969,2.712,184.39,184.38,4.61070688]
[1736528960167,2.712,184.39,184.38,10.43924247]
[1736528960572,2.712,184.39,184.38,4.61070688]
[1736528962578,12.69343601,184.43,184.36,2.7124]
[1736528962780,12.69343601,184.43,184.37,4.60786665]
[1736528963070,12.69343601,184.4,184.33,7.52244407]
[1736528963274,2.7127,184.34,184.33,29.93546648]
[1736528963475,2.7127,184.34,184.33,34.542034]
[1736528964173,2.7127,184.34,184.33,29.93546648]
[1736528964567,12.69343601,184.37,184.28,33.19196648]
[1736528964568,2.7133,184.31,184.28,33.19196648]
[1736528964781,2.7133,184.31,184.29,4.60445713]
[1736528964972,2.7133,184.31,184.3,4.60445713]
[1736528966078,2.7133,184.31,184.3,4.60248761]
[1736528966479,2.7133,184.31,184.3,4.60133404]
[1736528966778,2.7133,184.31,184.28,3.2565]
[1736528967078,2.7133,184.31,184.29,4.60137153]
[1736528967277,2.7133,184.31,184.28,3.2565]
[1736528967470,2.7133,184.31,184.29,4.60038583]
[1736528967667,2.7133,184.31,184.28,3.2565]
[1736528967879,2.7133,184.31,184.29,4.60036681]
[1736528968181,2.7133,184.31,184.28,3.2565]
[1736528968376,1.6175,184.4,184.29,4.59979338]
[1736528968574,19.40733601,184.41,184.3,4.59979338]
[1736528968778,19.40733601,184.41,184.28,15.94993601]
[1736528968969,19.40733601,184.41,184.29,4.59971476]
[1736528969175,5.18,184.4,184.3,4.59971476]
[1736528969471,5.18,184.4,184.31,4.59971476]
[1736528969679,12.69343601,184.37,184.28,3.2565]
[1736528970373,2.7134,184.3,184.28,3.2565]
[1736528970579,12.69343601,184.34,184.28,3.2565]
[1736528971977,12.69343601,184.34,184.28,1.6383]
[1736528972183,12.69343601,184.34,184.27,1.5241]
[1736528974482,2.7135,184.29,184.27,1.5241]
[1736528974684,2.7135,184.29,184.26,2.7139]
[1736528975075,2.7137,184.28,184.25,2.714]
[1736528975279,12.69343601,184.34,184.25,2.714]
[1736528975479,2.7137,184.28,184.25,2.714]
[1736528975778,2.7137,184.28,184.23,3.1116]
[1736528975779,12.69343601,184.31,184.23,3.1116]
[1736528975986,12.69343601,184.31,184.24,4.59772518]
[1736528976186,12.69343601,184.31,184.23,3.1116]
[1736528976381,12.69343601,184.31,184.24,4.59852622]
[1736528976686,12.69343601,184.31,184.23,3.1116]
[1736528976893,12.69343601,184.28,184.2,29.93546648]
[1736528977189,12.69343601,184.28,184.21,4.59765099]
[1736528977384,12.69343601,184.28,184.19,20.21588008]
[1736528977583,12.69343601,184.28,184.2,4.59645226]
[1736528977787,12.69343601,184.28,184.21,4.59645226]
[1736528977986,12.69343601,184.28,184.19,20.21588008]
[1736528978186,2.714,184.26,184.21,2.7146]
[1736528978389,12.69343601,184.31,184.21,2.7146]
[1736528979290,2.7139,184.27,184.22,4.59465913]
[1736528979491,2.7139,184.27,184.19,12.69343601]
[1736528979687,12.69343601,184.31,184.22,2.7144]
[1736528979889,2.7139,184.26,184.22,2.7144]
[1736528981091,2.7141,184.25,184.22,2.7144]
[1736528982388,5.18,184.3,184.19,12.69343601]
[1736528982691,12.69343601,184.28,184.17,33.09346648]
[1736528982890,2.7146,184.22,184.17,35.80866648]
[1736528983291,2.7146,184.22,184.17,3.158]
[1736528983587,2.7146,184.22,184.18,2.7151]
[1736528983792,2.7147,184.21,184.17,3.158]
[1736528984586,12.69343601,184.28,184.17,3.158]
[1736528984791,12.69343601,184.25,184.17,3.158]
[1736528985890,2.7148,184.21,184.17,5.8731]
[1736528986093,12.69343601,184.25,184.17,3.158]
[1736528986594,2.7148,184.2,184.17,3.158]
[1736528986794,12.69343601,184.25,184.17,3.158]
[1736528988194,2.7144,184.23,184.17,3.158]
[1736528988389,12.69343601,184.25,184.16,2.7154]
[1736528988796,2.715,184.19,184.16,2.7154]
[1736528990101,5.18,184.27,184.13,7.6211]
[1736528990102,2.7155,184.16,184.13,7.6211]
[1736528990702,2.7153,184.17,184.14,2.7157]
[1736528991501,2.7151,184.19,184.15,2.7154]
[1736528991696,2.7151,184.19,184.13,4.9054]
[1736528992001,12.69343601,184.25,184.14,4.58524754]
[1736528992206,2.7145,184.22,184.15,4.58506418]
[1736528992404,2.7145,184.22,184.13,17.59883601]
[1736528992592,2.7145,184.22,184.18,2.7149]
[1736528993199,2.7147,184.21,184.18,2.7149]
[1736528993903,12.69343601,184.25,184.16,2.7152]
[1736528993904,2.7149,184.2,184.16,2.7152]
[1736528994298,12.69343601,184.25,184.16,2.7152]
[1736528994700,12.69343601,184.25,184.15,2.7155]
[1736528995007,12.69343601,184.25,184.13,25.12128008]
[1736528995210,5.18,184.27,184.14,4.5855537]
[1736528995408,12.69343601,184.25,184.15,4.5855537]
[1736528995703,2.7153,184.17,184.11,29.93546648]
[1736528995905,2.7153,184.17,184.13,2.7157]
[1736528996298,2.7153,184.17,184.11,29.93546648]
[1736528996508,2.7153,184.17,184.14,2.7157]
[1736529000306,2.7153,184.17,184.15,2.7155]
[1736529001002,12.69343601,184.22,184.15,2.7155]
[1736529001208,5.18,184.22,184.12,20.21588008]
[1736529001404,5.18,184.22,184.13,4.59104788]
[1736529001608,2.7147,184.21,184.18,2.715]
[1736529002001,2.7147,184.21,184.12,20.21588008]
[1736529002202,2.7147,184.21,184.13,4.59094295]
[1736529002403,2.7147,184.21,184.14,4.59094295]
[1736529002598,12.69343601,184.25,184.15,4.59094295]
[1736529002803,12.69343601,184.28,184.16,6.12584295]
[1736529002999,8.3841,184.3,184.18,12.69343601]
[1736529003198,2.7143,184.24,184.21,2.7146]
[1736529003399,8.3841,184.3,184.17,1.5775]
[1736529003602,12.69343601,184.26,184.17,1.5775]
[1736529003801,12.69343601,184.26,184.17,11.81514407]
[1736529003802,2.7148,184.2,184.17,11.81514407]
[1736529004106,12.69343601,184.26,184.17,9.09994407]
[1736529004305,2.7139,184.27,184.17,9.09994407]
[1736529004510,12.69343601,184.31,184.18,17.29002158]
[1736529004705,12.69343601,184.34,184.21,12.69343601]
[1736529005003,0.84637634,184.33,184.22,6.18138557]
[1736529005210,12.69343601,184.34,184.22,1.5848]
[1736529005409,12.69343601,184.34,184.23,6.1393011]
[1736529005608,12.69343601,184.34,184.24,4.5983011]
[1736529005813,12.69343601,184.31,184.22,1.5848]
[1736529006208,12.69343601,184.31,184.22,4.2992]
[1736529006407,12.69343601,184.31,184.2,7.52244407]
[1736529006609,12.69343601,184.31,184.21,4.60179293]
[1736529006810,12.69343601,184.31,184.21,2.7145]
[1736529007308,2.7141,184.25,184.22,4.60438929]
[1736529007509,2.7141,184.25,184.21,2.7145]
[1736529008110,2.7141,184.25,184.22,2.7144]
[1736529008311,12.69343601,184.31,184.23,4.60586583]
[1736529008514,12.69343601,184.31,184.19,7.52244407]
[1736529008810,12.69343601,184.31,184.2,4.60631074]
[1736529009107,12.69343601,184.28,184.21,4.60631074]
[1736529009302,12.69343601,184.28,184.19,29.93546648]
[1736529009508,3.205,184.3,184.19,29.93546648]
[1736529009509,12.69343601,184.25,184.19,29.93546648]
[1736529009908,12.69343601,184.25,184.17,29.93546648]
[1736529010703,2.7151,184.18,184.17,29.93546648]
[1736529010911,2.7151,184.18,184.17,34.54529489]
[1736529011112,2.7151,184.18,184.17,29.93546648]
[1736529011312,2.7151,184.18,184.17,4.61099897]
[1736529012714,2.7151,184.18,184.17,4.61212676]
[1736529014208,2.7151,184.18,184.14,10.23804407]
[1736529014408,2.7151,184.18,184.15,4.61640297]
[1736529014609,2.7151,184.18,184.16,4.61640297]
[1736529014809,2.7151,184.18,184.17,4.61620996]
[1736529017012,2.7151,184.18,184.17,10.45606536]
[1736529019415,6.736,184.27,184.17,4.62410312]
[1736529019416,2.7149,184.19,184.17,4.62410312]
[1736529019613,8.15704299,184.2,184.14,2.7156]
[1736529019815,8.15704299,184.2,184.15,4.62408755]
[1736529020116,2.715,184.19,184.16,4.62408755]
[1736529020317,8.15704299,184.2,184.15,8.15704299]
[1736529020616,8.15704299,184.22,184.16,10.4735844]
[1736529020818,2.7152,184.18,184.17,4.62560444]
[1736529021014,8.15704299,184.22,184.17,4.62552219]
[1736529021210,8.15704299,184.22,184.15,10.87254299]
[1736529021408,8.15704299,184.22,184.16,4.62548265]
[1736529021613,8.15704299,184.22,184.17,4.62548265]
[1736529021815,8.15704299,184.22,184.18,4.62548265]
[1736529022012,8.15704299,184.22,184.15,8.15704299]
[1736529022211,6.736,184.27,184.16,4.62678339]
[1736529022423,8.15704299,184.23,184.17,4.62678339]
[1736529022621,8.15704299,184.23,184.18,4.62678339]
[1736529022820,8.15704299,184.23,184.16,8.56546629]
[1736529023023,2.715,184.19,184.17,4.62737588]
[1736529023325,2.715,184.19,184.18,4.62737588]
[1736529024525,2.7154,184.17,184.13,10.87274299]
[1736529024823,2.7154,184.17,184.14,10.4811121]
[1736529025023,2.7154,184.17,184.15,4.62896284]
[1736529025224,2.7154,184.17,184.16,4.62896284]
[1736529025421,2.7154,184.17,184.16,10.4811121]
[1736529026223,8.15704299,184.21,184.16,10.4811121]
[1736529026428,5.18,184.24,184.17,10.4811121]
[1736529026621,5.427,184.29,184.19,8.15704299]
[1736529026822,8.99992322,184.28,184.21,8.15704299]
[1736529027122,2.7142,184.25,184.21,8.15704299]
[1736529027324,8.15704299,184.3,184.23,8.15704299]
[1736529027636,2.7139,184.27,184.23,8.15704299]
[1736529027825,2.7139,184.27,184.24,10.48436732]
[1736529028022,2.7139,184.27,184.25,4.63007008]
[1736529028324,2.7139,184.27,184.26,4.63007008]
[1736529028531,2.7139,184.26,184.23,10.87134299]
[1736529028822,8.15704299,184.3,184.24,4.62884441]
[1736529029033,2.7133,184.3,184.25,12.7858874]
[1736529029223,2.7133,184.3,184.26,4.62872869]
[1736529029528,2.7133,184.3,184.25,2.7139]
[1736529029726,2.7133,184.3,184.26,4.62731825]
[1736529029926,2.7133,184.3,184.25,2.7139]
[1736529030127,2.7138,184.27,184.26,4.62731761]
[1736529030627,2.7136,184.28,184.26,4.62731761]
[1736529030929,12.72795882,184.32,184.2,17.58875882]
[1736529031129,12.72795882,184.32,184.21,4.632373]
[1736529031326,2.7139,184.27,184.23,2.7142]
[1736529031523,12.72795882,184.29,184.24,4.63241925]
[1736529031718,12.72795882,184.29,184.22,5.84884936]
[1736529031924,2.7147,184.21,184.17,2.7151]
[1736529032125,2.7147,184.21,184.18,10.48146859]
[1736529032320,2.7147,184.21,184.19,4.63238252]
[1736529032521,2.7147,184.21,184.2,4.63238252]
[1736529032825,5.18,184.27,184.2,4.63238252]
[1736529033031,5.18,184.27,184.21,4.63243025]
[1736529033221,5.18,184.27,184.17,12.72795882]
[1736529033531,12.72795882,184.25,184.18,4.63216547]
[1736529033831,2.7149,184.2,184.16,2.7154]
[1736529034033,12.72795882,184.25,184.17,4.63262445]
[1736529034229,12.72795882,184.25,184.18,10.4820323]
[1736529034534,2.7148,184.2,184.19,4.63262445]
[1736529035435,2.7151,184.18,184.15,2.7154]
[1736529035633,2.7151,184.18,184.16,4.63290764]
[1736529035933,2.7151,184.18,184.17,4.63290764]
[1736529036133,2.715,184.19,184.17,4.63290764]
[1736529036335,2.715,184.19,184.18,4.63290764]
[1736529037532,2.715,184.19,184.18,4.63289625]
[1736529037726,2.7147,184.21,184.18,4.63289625]
[1736529037929,5.18,184.26,184.19,4.63303729]
[1736529038133,5.18,184.26,184.15,12.72795882]
[1736529038331,2.7144,184.23,184.16,4.63292733]
[1736529038528,5.18,184.26,184.17,4.63292733]
[1736529038733,5.18,184.26,184.18,4.63292733]
[1736529038936,2.7143,184.24,184.19,4.63292733]
[1736529039133,2.7143,184.24,184.2,10.48269297]
[1736529039333,2.7143,184.24,184.21,4.63292733]
[1736529039533,2.7143,184.24,184.22,4.63292733]
[1736529039736,2.7143,184.24,184.23,4.63223384]
[1736529040334,2.7143,184.24,184.21,2.7145]
[1736529040534,17.90795882,184.32,184.22,4.63205366]
[1736529040733,17.90795882,184.32,184.23,4.6320328]
[1736529041034,17.90795882,184.32,184.22,2.7145]
[1736529041230,2.7141,184.25,184.23,4.63201438]
[1736529041431,17.90795882,184.32,184.18,12.72795882]
[1736529041639,2.7143,184.24,184.19,12.15200264]
[1736529041940,12.72795882,184.29,184.2,14.86680264]
[1736529042237,12.72795882,184.29,184.21,12.15200264]
[1736529042426,12.72795882,184.29,184.22,4.67384717]
[1736529042634,12.72795882,184.29,184.23,4.67384717]
[1736529042833,12.72795882,184.29,184.2,2.7148]
[1736529042834,2.7139,184.27,184.2,2.7148]
[1736529043034,12.72795882,184.29,184.21,14.8667225]
[1736529043235,12.72795882,184.29,184.22,4.67389327]
[1736529043438,12.72795882,184.29,184.23,4.67389327]
[1736529043630,12.72795882,184.29,184.21,2.7146]
[1736529043939,2.7144,184.23,184.22,4.67401403]
[1736529044238,2.7144,184.23,184.22,12.15237186]
[1736529044441,2.7144,184.23,184.22,18.00120507]
[1736529044643,2.7144,184.23,184.22,10.52283173]
[1736529044936,2.7146,184.22,184.18,12.72795882]
[1736529045139,12.72795882,184.29,184.19,12.15295685]
[1736529045342,12.72795882,184.29,184.2,12.15295685]
[1736529045644,12.72795882,184.29,184.21,12.15295685]
[1736529045844,12.72795882,184.29,184.22,4.67435874]
[1736529046145,2.7143,184.24,184.23,4.67435874]
[1736529046343,12.72795882,184.29,184.2,2.7148]
[1736529046544,12.72795882,184.29,184.21,4.67461553]
[1736529046736,12.72795882,184.29,184.22,4.67461553]
[1736529046940,2.7152,184.17,184.16,7.52244407]
[1736529047138,2.7152,184.17,184.16,13.33088904]
[1736529047534,2.7152,184.17,184.16,5.85038678]
[1736529049044,2.7152,184.17,184.14,1.6757]
[1736529049745,2.7152,184.17,184.15,5.84951052]
[1736529049943,2.7152,184.17,184.14,1.6757]
[1736529050344,2.7149,184.2,184.14,1.6757]
[1736529050550,5.18,184.22,184.14,1.6757]
[1736529050848,5.18,184.22,184.15,5.85059913]
[1736529051149,2.7153,184.17,184.15,5.85059913]
[1736529051350,2.7153,184.17,184.14,4.3914]
[1736529051649,5.18,184.22,184.14,1.6757]
[1736529051850,12.72795882,184.23,184.15,2.7154]
[1736529052049,17.90795882,184.26,184.16,5.8505542]
[1736529052845,12.72795882,184.26,184.17,5.8505542]
[1736529053142,10.6071,184.29,184.18,2.715]
[1736529053346,8.15270539,184.25,184.18,10.86770539]
[1736529053549,8.15270539,184.25,184.14,1.6757]
[1736529053752,8.15270539,184.25,184.17,10.86790539]
[1736529054151,2.7148,184.2,184.17,10.86790539]
[1736529054353,8.15270539,184.23,184.15,5.85135279]
[1736529054553,8.15270539,184.21,184.15,16.71955818]
[1736529054852,8.15270539,184.21,184.18,5.85135279]
[1736529055247,10.6071,184.29,184.14,1.6757]
[1736529055451,0.84294567,184.28,184.15,12.73872012]
[1736529055647,12.73872012,184.3,184.18,12.73872012]
[1736529056252,2.7144,184.23,184.2,2.7147]
[1736529056452,12.73872012,184.3,184.15,12.73872012]
[1736529056453,12.73872012,184.3,184.19,5.85145736]
[1736529057255,12.73872012,184.3,184.2,5.85145736]
[1736529057757,12.73872012,184.3,184.16,30.17880513]
[1736529057758,12.73872012,184.27,184.21,5.85145736]
[1736529058151,2.7145,184.22,184.21,5.85145736]
[1736529058746,2.715,184.19,184.16,10.26010128]
[1736529058952,12.73872012,184.24,184.17,4.58718468]
[1736529059153,12.73872012,184.24,184.18,4.58718468]
[1736529059352,12.73872012,184.24,184.19,10.43811381]
[1736529059552,12.73872012,184.24,184.2,4.58718468]
[1736529059753,12.73872012,184.24,184.19,5.85092913]
[1736529059957,2.715,184.19,184.15,10.26010128]
[1736529060459,12.73872012,184.24,184.16,2.7153]
[1736529060658,2.7149,184.2,184.16,2.7153]
[1736529060860,12.73872012,184.24,184.15,10.26020128]
[1736529061755,12.73872012,184.24,184.15,7.54470128]
[1736529061961,2.7154,184.17,184.15,7.54470128]
[1736529062257,12.73872012,184.21,184.15,7.54470128]
[1736529062461,12.73872012,184.21,184.15,10.26020128]
[1736529062755,2.7151,184.18,184.15,10.26020128]
[1736529062960,12.73872012,184.21,184.15,7.54470128]
[1736529063160,2.7152,184.18,184.14,4.3913]
[1736529063350,12.73872012,184.21,184.14,1.6757]
[1736529064356,2.7153,184.17,184.14,4.3913]
[1736529064757,2.715,184.19,184.16,2.7154]
[1736529064955,12.73872012,184.27,184.14,1.6757]
[1736529065161,12.73872012,184.27,184.15,12.73872012]
[1736529065360,2.7144,184.23,184.18,2.715]
[1736529065560,12.73872012,184.27,184.14,1.6757]
[1736529065963,2.7145,184.23,184.19,2.7148]
[1736529066457,12.73872012,184.27,184.18,7.54470128]
[1736529067061,2.7146,184.22,184.18,10.25980128]
[1736529067558,12.73872012,184.24,184.18,7.54470128]
[1736529067860,12.73872012,184.24,184.17,30.17880513]
[1736529068459,12.73872012,184.21,184.17,30.17880513]
[1736529069060,2.7153,184.17,184.15,30.17880513]
[1736529069260,12.73872012,184.18,184.15,30.17880513]
[1736529069954,12.73872012,184.18,184.14,1.6757]
[1736529070154,12.73872012,184.21,184.14,1.6757]
[1736529070359,5.18,184.29,184.14,1.6757]
[1736529070561,12.73872012,184.26,184.15,12.73872012]
[1736529070862,12.73872012,184.26,184.22,2.7144]
[1736529071061,8.6632501,184.33,184.15,69.54759707]
[1736529071261,3.55697266,184.32,184.28,2.7136]
[1736529071567,12.73872012,184.41,184.23,12.73872012]
[1736529071568,12.73872012,184.35,184.24,5.18]
[1736529071762,2.7129,184.34,184.29,2.7133]
[1736529072062,12.73872012,184.35,184.25,1.68]
[1736529072454,12.73872012,184.41,184.25,1.68]
[1736529072455,12.73872012,184.32,184.25,1.68]
[1736529072655,12.73872012,184.29,184.25,1.68]
[1736529072862,12.73872012,184.29,184.24,1.6666]
[1736529073063,12.73872012,184.32,184.26,5.32601436]
[1736529073264,0.84343372,184.31,184.25,30.17880513]
[1736529073762,2.7141,184.25,184.19,2.7149]
[1736529075060,2.7141,184.25,184.18,4.8548]
[1736529075061,12.73872012,184.26,184.18,4.8548]
[1736529075963,2.7145,184.22,184.18,7.5698]
[1736529076860,2.7142,184.24,184.18,4.8548]
[1736529077269,12.73872012,184.29,184.18,4.8548]
[1736529077568,1.5794,184.34,184.18,4.8548]
[1736529077569,12.73872012,184.26,184.18,4.8548]
[1736529077960,2.7143,184.24,184.18,4.8548]
[1736529078166,12.73872012,184.26,184.18,4.8548]
[1736529078366,12.73872012,184.29,184.18,4.8548]
[1736529078567,2.7139,184.26,184.22,2.7145]
[1736529078766,12.73872012,184.29,184.18,4.8548]
[1736529078968,12.73872012,184.32,184.18,4.8548]
[1736529079160,2.7138,184.27,184.18,4.8548]
[1736529079361,12.73872012,184.29,184.19,5.29367292]
[1736529079563,2.7148,184.2,184.19,5.29367292]
[1736529080267,2.7148,184.2,184.16,2.7154]
[1736529080769,12.73872012,184.25,184.15,4.3435]
[1736529081667,2.7149,184.2,184.16,2.7154]
[1736529081971,12.73872012,184.25,184.16,2.7154]
[1736529082170,2.7145,184.22,184.15,1.628]
[1736529082366,12.73872012,184.25,184.15,1.628]
[1736529082866,2.7151,184.19,184.15,4.3435]
[1736529083662,2.7151,184.18,184.15,4.3435]
[1736529083866,2.7151,184.18,184.15,1.628]
[1736529084372,2.7148,184.2,184.15,1.628]
[1736529085174,12.73872012,184.25,184.15,1.628]
[1736529085772,2.7145,184.23,184.18,2.7151]
[1736529085969,12.73872012,184.25,184.18,2.7151]
[1736529086576,2.7146,184.22,184.18,2.7151]
[1736529087077,2.7148,184.2,184.16,2.7153]
[1736529089277,2.7148,184.2,184.15,1.628]
[1736529089479,2.7148,184.2,184.17,2.7152]
[1736529089674,2.7148,184.2,184.15,1.628]
[1736529090874,12.73872012,184.25,184.15,1.628]
[1736529091075,12.73872012,184.22,184.15,1.628]
[1736529091269,12.73872012,184.22,184.14,7.54470128]
[1736529091578,2.7155,184.16,184.14,7.54470128]
[1736529092171,2.7155,184.16,184.12,2.7159]
[1736529092880,12.73872012,184.22,184.11,2.7161]
[1736529093069,12.73872012,184.19,184.11,2.7161]
[1736529093271,12.73872012,184.16,184.1,30.17880513]
[1736529093572,2.7161,184.11,184.1,30.17880513]
[1736529094375,17.91872012,184.16,184.06,30.17880513]
[1736529094376,2.7166,184.08,184.06,30.17880513]
[1736529094577,12.73872012,184.13,184.06,30.17880513]
[1736529095181,12.73872012,184.13,184.04,1.5985]
[1736529095880,12.73872012,184.13,184.05,2.7169]
[1736529096278,12.73872012,184.13,184.04,1.5985]
[1736529096480,2.7162,184.11,184.04,1.5985]
[1736529096681,12.73872012,184.13,184.04,1.5985]
[1736529098380,12.73872012,184.13,184.04,4.3155]
[1736529098584,12.73872012,184.1,184.02,30.17880513]
[1736529099182,12.73872012,184.1,184.01,2.7176]
[1736529099579,2.717,184.06,184.01,2.7176]
[1736529100678,2.7171,184.05,184.01,2.7176]
[1736529101086,12.73872012,184.1,184.02,2.7175]
[1736529103083,12.73872012,184.1,183.99,12.73872012]
[1736529103787,12.73872012,184.1,184.0,2.7177]
[1736529104585,2.7173,184.04,184.0,2.7177]
[1736529104884,5.18,184.08,184.01,2.7175]
[1736529105081,5.18,184.08,183.99,12.73872012]
[1736529105384,2.717,184.06,184.02,2.7174]
[1736529105585,12.73872012,184.1,183.99,12.73872012]
[1736529105782,12.73872012,184.14,184.02,12.73872012]
[1736529105980,12.73872012,184.14,184.08,2.7164]
[1736529106188,12.73872012,184.14,184.02,12.73872012]
[1736529106381,2.7164,184.1,184.02,12.73872012]
[1736529106887,2.7164,184.1,184.06,2.7168]
[1736529107281,2.7164,184.1,184.02,12.73872012]
[1736529107483,2.7164,184.1,184.07,2.7167]
[1736529107983,14.42232012,184.17,184.05,12.73872012]
[1736529108188,14.42232012,184.17,184.06,1.6582]
[1736529108688,2.7162,184.11,184.06,1.6582]
[1736529109188,12.73872012,184.14,184.08,2.7165]
[1736529109376,2.716,184.12,184.08,2.7165]
[1736529111284,2.716,184.12,184.06,1.6582]
[1736529111787,2.7157,184.14,184.06,1.6582]
[1736529111983,12.73872012,184.17,184.06,1.6582]
[1736529112487,12.73872012,184.17,184.1,2.7162]
[1736529112881,2.7158,184.14,184.1,2.7162]
[1736529113078,2.7158,184.14,184.11,2.7161]
[1736529114080,2.7155,184.16,184.13,2.7158]